[Event "44th Chess Olympiad Women 2022"]
[Site "Chennai"]
[Date "2022.08.05"]
[Round "7.21"]
[White "Johansson, Viktoria"]
[Black "Fang, Kun"]
[Result "1-0"]
[WhiteElo "2041"]
[BlackElo "1766"]
[Annotator "NA RC"]
[PlyCount "181"]
[EventDate "2022.??.??"]
[TimeControl "60"]

1. d4 {[%emt 0:00:07]} d5 {[%emt 0:00:03]} 2. c4 {[%emt 0:00:09]} c6 {[%emt 0:
00:00]} 3. Nf3 {[%emt 0:00:08]} Nf6 {[%emt 0:00:05]} 4. Nc3 {[%emt 0:00:37]} e6
{[%emt 0:00:17]} 5. e3 {[%emt 0:02:25]} Nbd7 {[%emt 0:00:16]} 6. Be2 {[%emt 0:
00:00]} Bd6 {[%emt 0:00:28]} 7. O-O {[%emt 0:00:44]} O-O {[%emt 0:00:41]} 8.
Qc2 {[%emt 0:09:10]} Qe7 {[%emt 0:07:25]} 9. e4 {[%emt 0:07:01]} dxe4 {[%emt 0:
00:00]} 10. Nxe4 {[%emt 0:00:09]} Nxe4 {[%emt 0:00:05]} 11. Qxe4 {[%emt 0:00:
00]} e5 {[%emt 0:10:27]} 12. Bg5 {[%emt 0:13:21]} Qe6 {[%emt 0:08:13]} 13. c5 {
[%emt 0:10:28]} Bc7 {[%emt 0:02:26]} 14. Rac1 {[%emt 0:07:01]} Qg6 {[%emt 0:00:
00]} 15. Qe3 {[%emt 0:08:32]} exd4 {[%emt 0:07:58]} 16. Qxd4 {[%emt 0:02:12]}
Ne5 {[%emt 0:05:32]} 17. Qh4 {[%emt 0:08:28]} Nxf3+ {[%emt 0:05:53]} 18. Bxf3 {
[%emt 0:00:15]} h6 {[%emt 0:04:21]} 19. Be3 {[%emt 0:15:39]} Re8 {[%emt 0:00:
00]} 20. Rfe1 {[%emt 0:01:07]} Be6 {[%emt 0:06:53]} 21. a3 {[%emt 0:01:00]}
Rad8 {[%emt 0:01:16]} 22. Qb4 {[%emt 0:05:24]} Re7 {[%emt 0:02:35]} 23. Bf4 {
[%emt 0:00:35]} Bxf4 {[%emt 0:04:47]} 24. Qxf4 {[%emt 0:00:03]} Red7 {[%emt 0:
00:00]} 25. Rc3 {[%emt 0:15:55]} Bd5 {[%emt 0:12:21]} 26. h3 {[%emt 0:00:00]}
Be6 {[%emt 0:02:57]} 27. Be4 {[%emt 0:00:00]} Qh5 {[%emt 0:00:11]} 28. Rg3 {
[%emt 0:00:00]} Rd4 {[%emt 0:01:14]} 29. Qe3 {[%emt 0:00:00]} Kh8 {[%emt 0:00:
00]} 30. b4 {[%emt 0:00:00]} a5 {[%emt 0:00:19]} 31. Bf3 {[%emt 0:00:00]} Qh4 {
[%emt 0:00:19]} 32. Qe5 {[%emt 0:00:00]} Rg8 {[%emt 0:01:02]} 33. Be4 {[%emt 0:
00:00]} Rd2 {[%emt 0:00:48]} 34. Bb1 {[%emt 0:00:00]} Rd5 {[%emt 0:00:27]} 35.
Qc3 {[%emt 0:00:00]} axb4 {[%emt 0:00:27]} 36. axb4 {[%emt 0:00:00]} Qd4 {
[%emt 0:00:07]} 37. Qa3 {[%emt 0:00:00]} Bf5 {[%emt 0:00:40]} 38. Rf3 {[%emt 0:
00:00]} Bxb1 {[%emt 0:00:33]} 39. Rxb1 {[%emt 0:00:00]} Qe4 {[%emt 0:00:13]}
40. Rf1 {[%emt 0:00:00]} f6 {[%emt 0:00:37]} 41. Re3 {[%emt 0:11:02]} Qd4 {
[%emt 0:01:18]} 42. Rfe1 {[%emt 0:02:17]} Rf5 {[%emt 0:00:54]} 43. Qd3 {
[%emt 0:01:01]} Rf4 {[%emt 0:02:11]} 44. Qg6 {[%emt 0:03:11]} f5 {[%emt 0:00:
00]} 45. g3 {[%emt 0:00:48]} Re4 {[%emt 0:01:42]} 46. Rxe4 {[%emt 0:00:07]}
fxe4 {[%emt 0:00:04]} 47. Qxe4 {[%emt 0:00:20]} Qd2 {[%emt 0:02:41]} 48. Kg2 {
[%emt 0:03:39]} Ra8 {[%emt 0:02:23]} 49. Re2 {[%emt 0:01:56]} Qd1 {[%emt 0:00:
00]} 50. Qf3 {[%emt 0:00:34]} Qb1 {[%emt 0:00:47]} 51. Qg4 {[%emt 0:01:46]} Ra1
{[%emt 0:03:47]} 52. Re8+ {[%emt 0:00:09]} Kh7 {[%emt 0:00:08]} 53. Qe4+ {
[%emt 0:00:06]} Qxe4+ {[%emt 0:00:18]} 54. Rxe4 {[%emt 0:00:05]} Rb1 {[%emt 0:
00:00]} 55. g4 {[%emt 0:01:34]} Rb2 {[%emt 0:02:18]} 56. h4 {[%emt 0:00:20]}
Kg8 {[%emt 0:04:01]} 57. h5 {[%emt 0:03:53]} Kf7 {[%emt 0:00:31]} 58. Kg3 {
[%emt 0:00:18]} Rb1 {[%emt 0:02:56]} 59. Rd4 {[%emt 0:01:49]} Ke6 {[%emt 0:00:
00]} 60. Kf4 {[%emt 0:00:21]} Rb2 {[%emt 0:00:22]} 61. f3 {[%emt 0:00:25]} Rb3
{[%emt 0:00:21]} 62. Ke4 {[%emt 0:00:57]} Rb1 {[%emt 0:00:40]} 63. Rd6+ {
[%emt 0:01:53]} Ke7 {[%emt 0:00:09]} 64. Kf5 {[%emt 0:01:24]} Rb3 {[%emt 0:00:
00]} 65. Kg6 {[%emt 0:00:20]} Rxf3 {[%emt 0:00:18]} 66. Rd4 {[%emt 0:00:45]}
Kf8 {[%emt 0:01:13]} 67. Rd8+ {[%emt 0:00:20]} Ke7 {[%emt 0:00:03]} 68. Rb8 {
[%emt 0:00:11]} Rf4 {[%emt 0:00:24]} 69. Rxb7+ {[%emt 0:00:09]} Ke6 {[%emt 0:
00:00]} 70. Kxg7 {[%emt 0:00:09]} Rxg4+ {[%emt 0:00:15]} 71. Kxh6 {[%emt 0:00:
00]} Kf6 {[%emt 0:02:02]} 72. Kh7 {[%emt 0:00:52]} Rg5 {[%emt 0:01:42]} 73. h6
{[%emt 0:00:08]} Rg4 {[%emt 0:00:17]} 74. Rb6 {[%emt 0:00:47]} Kf7 {[%emt 0:00:
00]} 75. Rb8 {[%emt 0:00:44]} Rh4 {[%emt 0:00:29]} 76. Rb7+ {[%emt 0:00:36]}
Kf6 {[%emt 0:00:15]} 77. Rb6 {[%emt 0:00:15]} Kf7 {[%emt 0:00:04]} 78. Rxc6 {
[%emt 0:00:03]} Rxb4 {[%emt 0:00:22]} 79. Rg6 {[%emt 0:01:17]} Rb8 {[%emt 0:00:
00]} 80. c6 {[%emt 0:00:00]} Ra8 {[%emt 0:00:37]} 81. c7 {[%emt 0:00:00]} Rc8 {
[%emt 0:00:28]} 82. Rc6 {[%emt 0:00:00]} Kf8 {[%emt 0:00:18]} 83. Rc1 {[%emt 0:
00:00]} Kf7 {[%emt 0:00:35]} 84. Rc6 {[%emt 0:00:39]} Kf8 {[%emt 0:00:10]} 85.
Kg6 {[%emt 0:00:11]} Kg8 {[%emt 0:00:37]} 86. Kf6 {[%emt 0:00:19]} Kh8 {
[%emt 0:01:18]} 87. Ke7 {[%emt 0:00:11]} Kh7 {[%emt 0:00:25]} 88. Kd7 {[%emt 0:
00:00]} Rf8 {[%emt 0:00:22]} 89. c8=Q {[%emt 0:00:52]} Rf7+ {[%emt 0:00:08]}
90. Ke6 {[%emt 0:00:34]} Re7+ {[%emt 0:00:14]} 91. Kd6 {[%emt 0:00:06]} 1-0

[Event "44th Chess Olympiad Women 2022"]
[Site "Chennai"]
[Date "2022.08.05"]
[Round "7.22"]
[White "Demchenko, Svitlana"]
[Black "Trippold, Denise"]
[Result "1/2-1/2"]
[WhiteElo "2122"]
[BlackElo "2151"]
[Annotator "ChessBase"]
[PlyCount "54"]
[EventDate "2022.??.??"]
[TimeControl "60"]

1. e4 {[%emt 0:00:04]} e6 {[%emt 0:00:14]} 2. d4 {[%emt 0:00:09]} d5 {[%emt 0:
00:00]} 3. Bd3 {[%emt 0:00:06]} dxe4 {[%emt 0:01:14]} 4. Bxe4 {[%emt 0:00:08]}
Nf6 {[%emt 0:00:20]} 5. Bf3 {[%emt 0:00:07]} c5 {[%emt 0:01:03]} 6. Ne2 {
[%emt 0:00:09]} Nc6 {[%emt 0:00:30]} 7. Be3 {[%emt 0:00:08]} cxd4 {[%emt 0:00:
00]} 8. Nxd4 {[%emt 0:00:07]} Ne5 {[%emt 0:01:22]} 9. Nc3 {[%emt 0:00:13]} a6 {
[%emt 0:00:31]} 10. Qe2 {[%emt 0:00:14]} Nxf3+ {[%emt 0:00:28]} 11. Qxf3 {
[%emt 0:00:10]} Be7 {[%emt 0:02:51]} 12. O-O-O {[%emt 0:00:44]} Qc7 {[%emt 0:
00:00]} 13. g4 {[%emt 0:06:40]} O-O {[%emt 0:03:51]} 14. g5 {[%emt 0:03:24]}
Ne8 {[%emt 0:06:59]} 15. Rhg1 {[%emt 0:05:20]} Bd7 {[%emt 0:17:07]} 16. Ne4 {
[%emt 0:10:54]} Bc6 {[%emt 0:09:25]} 17. Nxc6 {[%emt 0:03:25]} Qxc6 {[%emt 0:
00:00]} 18. Rd3 {[%emt 0:00:29]} Kh8 {[%emt 0:12:19]} 19. Bd4 {[%emt 0:05:06]}
Nd6 {[%emt 0:03:59]} 20. Bf6 {[%emt 0:34:55]} Nf5 {[%emt 0:14:49]} 21. Bxe7 {
[%emt 0:11:05]} Nxe7 {[%emt 0:00:07]} 22. Rc3 {[%emt 0:00:38]} Qd5 {[%emt 0:00:
00]} 23. Kb1 {[%emt 0:04:45]} Rac8 {[%emt 0:01:44]} 24. Rd3 {[%emt 0:02:38]}
Qc6 {[%emt 0:00:11]} 25. Rc3 {[%emt 0:00:39]} Qd5 {[%emt 0:00:10]} 26. Rd3 {
[%emt 0:00:18]} Qc6 {[%emt 0:00:08]} 27. Rc3 {[%emt 0:00:21]} Qd5 {[%emt 0:00:
00]} 1/2-1/2

[Event "44th Chess Olympiad Women 2022"]
[Site "Chennai"]
[Date "2022.08.05"]
[Round "7.22"]
[White "Guo, Yu Han"]
[Black "Hapala, Elisabeth"]
[Result "0-1"]
[WhiteElo "1630"]
[BlackElo "2113"]
[Annotator "NA RC"]
[PlyCount "48"]
[EventDate "2022.??.??"]
[TimeControl "60"]

1. d4 {[%emt 0:00:02]} Nf6 {[%emt 0:00:04]} 2. c4 {[%emt 0:00:16]} e6 {[%emt 0:
00:00]} 3. Nc3 {[%emt 0:00:10]} Bb4 {[%emt 0:00:04]} 4. e3 {[%emt 0:00:23]} O-O
{[%emt 0:00:05]} 5. Nge2 {[%emt 0:00:44]} Re8 {[%emt 0:00:14]} 6. a3 {[%emt 0:
00:00]} Bf8 {[%emt 0:00:07]} 7. e4 {[%emt 0:01:00]} d5 {[%emt 0:00:22]} 8. e5 {
[%emt 0:00:44]} Nfd7 {[%emt 0:00:05]} 9. cxd5 {[%emt 0:06:43]} exd5 {[%emt 0:
00:00]} 10. Nxd5 {[%emt 0:01:38]} c5 {[%emt 0:01:03]} 11. f4 {[%emt 0:04:11]}
cxd4 {[%emt 0:07:37]} 12. Qxd4 {[%emt 0:01:03]} Nc6 {[%emt 0:00:09]} 13. Qc4 {
[%emt 0:04:55]} Ndxe5 {[%emt 0:12:33]} 14. fxe5 {[%emt 0:01:23]} Nxe5 {[%emt 0:
00:00]} 15. Qd4 {[%emt 0:06:20]} Bc5 {[%emt 0:00:42]} 16. Qd2 {[%emt 0:08:41]}
Bf5 {[%emt 0:11:24]} 17. Ndf4 {[%emt 0:24:28]} Qh4+ {[%emt 0:00:52]} 18. g3 {
[%emt 0:04:01]} Nf3+ {[%emt 0:00:05]} 19. Kd1 {[%emt 0:00:13]} Qe7 {[%emt 0:00:
00]} 20. Nd5 {[%emt 0:13:08]} Qe5 {[%emt 0:00:47]} 21. Ndc3 {[%emt 0:03:36]}
Nxd2 {[%emt 0:00:46]} 22. Bxd2 {[%emt 0:00:05]} Rad8 {[%emt 0:01:57]} 23. b4 {
[%emt 0:01:46]} Rxd2+ {[%emt 0:02:25]} 24. Kxd2 {[%emt 0:00:31]} Qe3+ {[%emt 0:
00:00]} 0-1

[Event "44th Chess Olympiad Women 2022"]
[Site "Chennai"]
[Date "2022.08.05"]
[Round "7.22"]
[White "Mayrhuber, Nikola"]
[Black "Mills, Morgen"]
[Result "1/2-1/2"]
[WhiteElo "2141"]
[BlackElo "1993"]
[Annotator "NA RC"]
[PlyCount "61"]
[EventDate "2022.??.??"]
[TimeControl "60"]

1. d4 {[%emt 0:00:04]} d5 {[%emt 0:00:17]} 2. c4 {[%emt 0:00:09]} e6 {[%emt 0:
00:00]} 3. Nc3 {[%emt 0:00:16]} Nf6 {[%emt 0:00:08]} 4. cxd5 {[%emt 0:00:51]}
Nxd5 {[%emt 0:00:34]} 5. e4 {[%emt 0:01:36]} Nxc3 {[%emt 0:00:06]} 6. bxc3 {
[%emt 0:00:04]} c5 {[%emt 0:00:14]} 7. Rb1 {[%emt 0:06:29]} cxd4 {[%emt 0:00:
00]} 8. cxd4 {[%emt 0:00:25]} Bd6 {[%emt 0:06:20]} 9. Nf3 {[%emt 0:05:06]} Nc6
{[%emt 0:02:54]} 10. Bb5 {[%emt 0:05:49]} O-O {[%emt 0:02:27]} 11. O-O {
[%emt 0:03:38]} Bd7 {[%emt 0:02:26]} 12. Bg5 {[%emt 0:21:44]} Be7 {[%emt 0:00:
00]} 13. Be3 {[%emt 0:04:59]} a6 {[%emt 0:03:23]} 14. Be2 {[%emt 0:02:02]} b5 {
[%emt 0:15:39]} 15. a4 {[%emt 0:09:29]} Na7 {[%emt 0:04:37]} 16. Ne5 {[%emt 0:
00:00]} Bd6 {[%emt 0:03:31]} 17. Nxd7 {[%emt 0:04:29]} Qxd7 {[%emt 0:00:06]}
18. axb5 {[%emt 0:08:19]} Nxb5 {[%emt 0:00:40]} 19. Qa4 {[%emt 0:00:20]} Qc7 {
[%emt 0:08:23]} 20. Bxb5 {[%emt 0:10:24]} axb5 {[%emt 0:03:12]} 21. Qxb5 {
[%emt 0:00:07]} Rab8 {[%emt 0:04:56]} 22. Qh5 {[%emt 0:00:26]} Rxb1 {[%emt 0:
00:00]} 23. Rxb1 {[%emt 0:00:05]} Qc2 {[%emt 0:00:31]} 24. Qd1 {[%emt 0:06:27]}
Qxe4 {[%emt 0:00:13]} 25. Rb6 {[%emt 0:00:32]} Bc7 {[%emt 0:01:26]} 26. Rb5 {
[%emt 0:01:09]} Rb8 {[%emt 0:04:54]} 27. Qb3 {[%emt 0:03:49]} Qa8 {[%emt 0:00:
00]} 28. Rxb8+ {[%emt 0:00:43]} Qxb8 {[%emt 0:00:09]} 29. Qxb8+ {[%emt 0:00:04]
} Bxb8 {[%emt 0:00:06]} 30. h3 {[%emt 0:01:11]} Kf8 {[%emt 0:00:15]} 31. Kf1 {
[%emt 0:00:05]} 1/2-1/2

[Event "44th Chess Olympiad Women 2022"]
[Site "Chennai"]
[Date "2022.08.05"]
[Round "7.23"]
[White "Alinasab, Mobina"]
[Black "Gomez Barrera, Javiera Belen"]
[Result "1/2-1/2"]
[WhiteElo "2364"]
[BlackElo "2210"]
[Annotator "TA"]
[PlyCount "170"]
[EventDate "2022.??.??"]
[TimeControl "60"]

{[%evp 12,170,10,12,22,21,29,27,58,51,54,43,60,36,39,45,47,25,62,64,72,32,29,
19,18,28,24,0,0,-1,7,0,38,31,30,18,33,0,15,25,14,-20,0,0,0,0,0,-20,-22,-22,-16,
-32,25,25,33,25,48,11,6,9,12,6,26,12,28,20,52,85,68,16,16,16,30,20,33,0,0,0,0,
0,24,22,22,0,0,0,0,0,8,8,8,0,0,0,0,0,8,8,11,16,22,8,8,8,8,10,14,8,8,8,8,8,8,8,
8,8,8,0,8,8,8,8,8,8,8,8,8,8,8,0,0,0,0,0,0,0,8,8,8,8,8,0,8,8,8,8,8,8,8,0,0,0,0,
0,0,0,0,0,0,0,0]} 1. e4 {[%emt 0:00:12]} e5 {[%emt 0:00:14]} 2. Nf3 {[%emt 0:
00:00]} Nc6 {[%emt 0:00:09]} 3. Bb5 {[%emt 0:00:32][%cal Yf1b5,Yb5a4,Ya4b3]} a6
{[%emt 0:00:23]} 4. Ba4 {[%emt 0:00:13]} Nf6 {[%emt 0:00:15]} 5. Nc3 {[%emt 0:
00:11]} b5 {[%emt 0:13:15]} 6. Bb3 {[%emt 0:00:09]} Be7 {[%emt 0:00:00]} 7. d3
{[%emt 0:00:10] 7.a4 is more advanced technology.} Bb7 {[%emt 0:00:00] C77:
Ruy Lopez: 3...a6 4 Ba4 Nf6, unusual lines.} 8. a3 {[%emt 0:04:51] [#]} h6 $146
{[%emt 0:09:59]} ({Predecessor:} 8... d6 9. O-O O-O 10. Nd5 h6 11. c3 Re8 12.
Nxe7+ Nxe7 13. Nh4 c5 14. f4 c4 15. fxe5 dxe5 16. dxc4 Qxd1 17. Rxd1 Bxe4 18.
cxb5 axb5 {1-0 (60) Bernadskiy,V (2547)-Harsha,B (2492) Ahmedabad 2018}) 9. Nd5
{[%emt 0:03:37]} Bd6 {[%emt 0:05:41] White has an edge.} 10. Ne3 {[%emt 0:04:
45]} Bf8 {[%emt 0:17:35]} 11. O-O {[%emt 0:04:45]} d6 {[%emt 0:00:00]} 12. Nd5
{[%emt 0:10:53]} Nxd5 {[%emt 0:17:29]} 13. Bxd5 {[%emt 0:04:55]} Be7 {[%emt 0:
01:59]} 14. d4 {[%emt 0:00:30]} Rb8 {[%emt 0:02:48]} 15. dxe5 {[%emt 0:13:12]
White is more active.} Nxe5 {[%emt 0:06:41]} 16. Nd4 {[%emt 0:00:00]} c6 {
[%emt 0:02:41]} 17. Ba2 {[%emt 0:01:27] And now f4 would win.} O-O $1 {[%emt 0:
00:36]} 18. Nf5 {[%emt 0:01:04][%cal Yc1h6] [#] Hoping for Bxh6!} Bc8 {[%emt 0:
04:35]} 19. Qh5 {[%emt 0:07:21][%cal Yf5g7]} Bxf5 {[%emt 0:00:04]} 20. Qxf5 {
[%emt 0:00:03]} Qc8 {[%emt 0:00:41]} 21. Qh5 {[%emt 0:05:26]} Qg4 {[%emt 0:01:
56]} 22. Qxg4 {[%emt 0:00:27]} Nxg4 {[%emt 0:00:02]} 23. Bd2 {[%emt 0:00:18]}
Bf6 {[%emt 0:00:50]} 24. Rab1 {[%emt 0:04:22]} Rfe8 {[%emt 0:00:00]} 25. h3 {
[%emt 0:03:06]} Ne5 {[%emt 0:00:02]} 26. b3 {[%emt 0:07:25] Inhibits Nc4.} Ng6
{[%emt 0:01:42]} 27. Rfe1 {[%emt 0:00:21]} Rb7 {[%emt 0:00:00]} 28. Rbd1 {
[%emt 0:02:09]} Rbe7 {[%emt 0:00:26]} 29. f3 {[%emt 0:02:52]} Bh4 {[%emt 0:00:
32]} 30. Rf1 {[%emt 0:01:12]} Bg3 {[%emt 0:00:01]} 31. Be3 {[%emt 0:13:13]} f5
{[%emt 0:02:32]} (31... d5 $15) 32. Bf2 $11 {[%emt 0:03:29]} Bxf2+ {[%emt 0:00:
29]} 33. Rxf2 {[%emt 0:00:01]} fxe4 {[%emt 0:00:36] [#] aiming for ...e3.} 34.
fxe4 {[%emt 0:00:17]} (34. Rxd6 {seems wilder.} e3 35. b4+ Kh8 36. Rf1) 34...
Rxe4 {[%emt 0:00:34]} 35. Rxd6 {[%emt 0:00:04]} Ne5 {[%emt 0:00:33]} 36. b4+ {
[%emt 0:02:06]} Kh8 {[%emt 0:00:24]} 37. Bb3 {[%emt 0:00:00]} Re1+ {[%emt 0:00:
32]} 38. Rf1 {[%emt 0:00:13]} Rxf1+ {[%emt 0:00:34]} 39. Kxf1 {[%emt 0:00:01]
Endgame KRB-KRN} g6 {[%emt 0:00:27]} 40. Re6 {[%emt 0:01:18]} ({Better is} 40.
a4 $14) 40... Rxe6 {[%emt 0:00:27]} 41. Bxe6 {[%emt 0:30:01] KB-KN} Kg7 {
[%emt 0:01:22]} 42. Ke2 $1 {[%emt 0:00:00]} Kf6 {[%emt 0:01:22]} 43. Bc8 {
[%emt 0:00:00]} Nc4 {[%emt 0:00:52]} 44. Bb7 {[%emt 0:00:00]} Ke5 {[%emt 0:20:
44]} 45. Bxc6 {[%emt 0:00:00]} Nxa3 {[%emt 0:00:00]} (45... Kd4 $5 {[%cal
Rc4a3]}) 46. Kd3 {[%emt 0:00:00] Threatens to win with Bb7.} Nc4 {[%emt 0:00:
12] The position is equal.} 47. Bb7 {[%emt 0:00:00]} a5 {[%emt 0:01:51]} 48.
bxa5 {[%emt 0:00:00]} Nxa5 {[%emt 0:00:02]} 49. Be4 {[%emt 0:00:00]} g5 {
[%emt 0:00:23]} 50. c3 {[%emt 0:04:20]} Kd6 {[%emt 0:02:27]} 51. Kd4 {[%emt 0:
00:00]} Nb3+ {[%emt 0:00:14]} 52. Ke3 {[%emt 0:00:00]} Nc5 {[%emt 0:01:36]} 53.
Bf3 {[%emt 0:00:00]} Na4 {[%emt 0:00:27]} 54. Kd4 {[%emt 0:00:00]} Kc7 {
[%emt 0:00:37]} 55. Bd1 {[%emt 0:00:58]} Kc6 {[%emt 0:00:31]} 56. c4 {[%emt 0:
02:14] Strongly threatening cxb5+.} Nc5 {[%emt 0:00:24]} 57. Bf3+ {[%emt 0:01:
01]} Kb6 {[%emt 0:00:04]} 58. cxb5 {[%emt 0:00:08]} Kxb5 {[%emt 0:00:00]} 59.
Ke5 {[%emt 0:00:33]} Kc4 {[%emt 0:00:51]} 60. Kf5 {[%emt 0:00:51] Kg6 is the
strong threat.} Kd4 {[%emt 0:00:13]} 61. Kg6 {[%emt 0:00:33]} Ke3 {[%emt 0:00:
46]} 62. Kxh6 {[%emt 0:00:28]} Kf4 {[%emt 0:00:07]} 63. Kh5 {[%emt 0:00:29]}
Nd3 {[%emt 0:01:24]} 64. Bg4 {[%emt 0:00:30]} Nf2 {[%emt 0:00:00]} 65. Bc8 {
[%emt 0:00:30]} Ne4 {[%emt 0:00:29]} 66. Bb7 {[%emt 0:00:30] Bxe4 would kill
now.} Ng3+ {[%emt 0:00:25]} 67. Kg6 {[%emt 0:00:14]} Ne2 {[%emt 0:00:31]} 68.
Bf3 {[%emt 0:00:47]} Nd4 {[%emt 0:00:32]} 69. Bg4 {[%emt 0:00:00]} Nc2 {
[%emt 0:00:34]} 70. g3+ {[%emt 0:00:49]} Kxg3 {[%emt 0:00:03]} 71. Kxg5 {
[%emt 0:00:06] Threatening mate with h4.} Ne3 {[%emt 0:00:50]} 72. Be6 {
[%emt 0:00:34]} Ng2 {[%emt 0:00:20]} 73. Bc8 {[%emt 0:00:25]} Kh2 {[%emt 0:00:
00]} 74. Kg4 {[%emt 0:00:31]} Ne3+ {[%emt 0:00:30]} 75. Kf4 {[%emt 0:00:44]}
Ng2+ {[%emt 0:00:30]} 76. Kg4 {[%emt 0:00:39]} Ne3+ {[%emt 0:00:09]} 77. Kf3 $1
{[%emt 0:00:01] Intending h4 and mate.} Ng2 $1 {[%emt 0:00:27]} 78. Kf2 {
[%emt 0:00:25]} Nh4 {[%emt 0:00:47]} 79. Bg4 {[%emt 0:00:31]} Ng6 {[%emt 0:00:
00]} 80. Kf3 {[%emt 0:00:35]} Nh4+ {[%emt 0:00:10]} 81. Kf4 {[%emt 0:00:10]}
Ng2+ {[%emt 0:00:01]} 82. Kg5 {[%emt 0:00:21]} Kg3 {[%emt 0:00:11]} 83. Bc8 {
[%emt 0:00:13]} Nh4 {[%emt 0:00:19]} 84. Bg4 {[%emt 0:00:13]} Ng2 {[%emt 0:00:
00]} 85. Bc8 {[%emt 0:00:08]} Nh4 {[%emt 0:00:04] Weighted Error Value:
White=0.09 (flawless) /Black=0.09 (flawless)} 1/2-1/2

[Event "44th Chess Olympiad Women 2022"]
[Site "Chennai"]
[Date "2022.08.05"]
[Round "7.23"]
[White "Morales Flores, Monserrat"]
[Black "Masoumi, Sahar"]
[Result "1-0"]
[WhiteElo "1946"]
[BlackElo "1956"]
[Annotator "NA RC"]
[PlyCount "45"]
[EventDate "2022.??.??"]
[TimeControl "60"]

1. e4 {[%emt 0:00:11]} c5 {[%emt 0:00:06]} 2. Nf3 {[%emt 0:00:11]} e6 {[%emt 0:
00:00]} 3. d4 {[%emt 0:00:22]} cxd4 {[%emt 0:00:06]} 4. Nxd4 {[%emt 0:00:04]}
Nf6 {[%emt 0:00:09]} 5. Nc3 {[%emt 0:00:17]} Nc6 {[%emt 0:00:08]} 6. Be2 {
[%emt 0:00:37]} Bb4 {[%emt 0:00:10]} 7. O-O {[%emt 0:01:53]} Bxc3 {[%emt 0:00:
00]} 8. bxc3 {[%emt 0:00:04]} Nxe4 {[%emt 0:00:11]} 9. Qd3 {[%emt 0:00:37]} d5
{[%emt 0:01:43]} 10. Ba3 {[%emt 0:03:08]} a6 {[%emt 0:21:53]} 11. Nxc6 {
[%emt 0:18:08]} bxc6 {[%emt 0:00:07]} 12. c4 {[%emt 0:00:42]} Qa5 {[%emt 0:00:
00]} 13. Bf3 {[%emt 0:18:43]} Nd2 {[%emt 0:19:29]} 14. cxd5 {[%emt 0:06:14]}
cxd5 {[%emt 0:03:42]} 15. Rfd1 {[%emt 0:13:17]} Nxf3+ {[%emt 0:10:57]} 16. Qxf3
{[%emt 0:00:06]} f6 {[%emt 0:00:55]} 17. c4 {[%emt 0:03:29]} Bb7 {[%emt 0:00:
00]} 18. Qg3 {[%emt 0:12:01]} Kf7 {[%emt 0:02:51]} 19. Rab1 {[%emt 0:01:43]}
Bc6 {[%emt 0:05:59]} 20. cxd5 {[%emt 0:02:25]} Bxd5 {[%emt 0:00:47]} 21. Rb7+ {
[%emt 0:01:18]} Bxb7 {[%emt 0:09:22]} 22. Rd7+ {[%emt 0:00:16]} Ke8 {[%emt 0:
00:00]} 23. Re7+ {[%emt 0:00:05]} 1-0

[Event "44th Chess Olympiad Women 2022"]
[Site "Chennai"]
[Date "2022.08.05"]
[Round "7.23"]
[White "Toro Pradenas, Maria Jose"]
[Black "Asgharzadeh, Mitra"]
[Result "0-1"]
[WhiteElo "1945"]
[BlackElo "1988"]
[Annotator "NA"]
[PlyCount "72"]
[EventDate "2022.??.??"]
[TimeControl "60"]

1. e4 {[%emt 0:00:02]} e6 {[%emt 0:00:08]} 2. d4 {[%emt 0:00:10]} d5 {[%emt 0:
00:00]} 3. Nc3 {[%emt 0:00:08]} Nf6 {[%emt 0:00:11]} 4. e5 {[%emt 0:00:20]}
Nfd7 {[%emt 0:00:03]} 5. f4 {[%emt 0:00:03]} c5 {[%emt 0:00:11]} 6. Nf3 {
[%emt 0:00:11]} Nc6 {[%emt 0:00:07]} 7. Be3 {[%emt 0:00:23]} Be7 {[%emt 0:00:
00]} 8. Qd2 {[%emt 0:09:23]} O-O {[%emt 0:00:21]} 9. Bd3 {[%emt 0:07:23]} b6 {
[%emt 0:03:12]} 10. O-O {[%emt 0:00:52]} f5 {[%emt 0:00:23]} 11. exf6 {[%emt 0:
00:00]} Bxf6 {[%emt 0:07:22]} 12. Bb5 {[%emt 0:05:05]} Nxd4 {[%emt 0:10:42]}
13. Nxd4 {[%emt 0:02:36]} cxd4 {[%emt 0:00:10]} 14. Bxd4 {[%emt 0:00:04]} Bb7 {
[%emt 0:10:29]} 15. Rae1 {[%emt 0:05:54]} Bxd4+ {[%emt 0:06:08]} 16. Qxd4 {
[%emt 0:00:07]} Nc5 {[%emt 0:00:42]} 17. b4 {[%emt 0:11:32]} Ne4 {[%emt 0:00:
00]} 18. Bd3 {[%emt 0:00:18]} Rc8 {[%emt 0:05:57]} 19. Ne2 {[%emt 0:14:19]} Qh4
{[%emt 0:11:46]} 20. Qe5 {[%emt 0:04:33]} Qe7 {[%emt 0:19:51]} 21. Nd4 {
[%emt 0:00:56]} Qxb4 {[%emt 0:08:46]} 22. Nxe6 {[%emt 0:00:47]} Rf6 {[%emt 0:
00:00]} 23. f5 {[%emt 0:05:20]} Qc3 {[%emt 0:07:17]} 24. Qf4 {[%emt 0:01:13]}
Re8 {[%emt 0:02:15]} 25. Qg4 {[%emt 0:02:35]} Rfxe6 {[%emt 0:01:51]} 26. fxe6 {
[%emt 0:00:09]} Qd4+ {[%emt 0:00:34]} 27. Kh1 {[%emt 0:01:11]} Nf2+ {[%emt 0:
00:00]} 28. Rxf2 {[%emt 0:00:06]} Qxg4 {[%emt 0:00:05]} 29. e7 {[%emt 0:04:20]}
Qg5 {[%emt 0:01:02]} 30. Rf5 {[%emt 0:00:26]} Qh4 {[%emt 0:01:07]} 31. g3 {
[%emt 0:00:13]} Qb4 {[%emt 0:00:23]} 32. Rfe5 {[%emt 0:00:57]} Qc5 {[%emt 0:00:
00]} 33. Bf5 {[%emt 0:00:20]} Qf2 {[%emt 0:00:40]} 34. Be6+ {[%emt 0:00:45]}
Kh8 {[%emt 0:00:02]} 35. Bf5 {[%emt 0:00:18]} d4+ {[%emt 0:00:13]} 36. Be4 {
[%emt 0:00:15]} Qxe1+ {[%emt 0:00:11]} 0-1

[Event "44th Chess Olympiad Women 2022"]
[Site "Chennai"]
[Date "2022.08.05"]
[Round "7.23"]
[White "Zahedifar, Anahita"]
[Black "Reyes Jara, Paula"]
[Result "1-0"]
[WhiteElo "2160"]
[BlackElo "1858"]
[Annotator "NA"]
[PlyCount "65"]
[EventDate "2022.??.??"]
[TimeControl "60"]

1. d4 {[%emt 0:00:10]} Nf6 {[%emt 0:00:13]} 2. c4 {[%emt 0:00:09]} g6 {[%emt 0:
00:00]} 3. h4 {[%emt 0:00:37]} Bg7 {[%emt 0:04:48]} 4. Nc3 {[%emt 0:00:06]} d6
{[%emt 0:01:42]} 5. e4 {[%emt 0:00:23]} Nbd7 {[%emt 0:02:55]} 6. Be2 {[%emt 0:
00:00]} h5 {[%emt 0:07:11]} 7. Bg5 {[%emt 0:02:28]} c6 {[%emt 0:02:17]} 8. Qd2
{[%emt 0:06:42]} Qc7 {[%emt 0:06:54]} 9. f3 {[%emt 0:04:56]} Nf8 {[%emt 0:00:
00]} 10. Nh3 {[%emt 0:03:02]} Bxh3 {[%emt 0:07:04]} 11. Rxh3 {[%emt 0:00:19]}
O-O-O {[%emt 0:00:08]} 12. O-O-O {[%emt 0:02:08]} Ne6 {[%emt 0:00:48]} 13. Be3
{[%emt 0:02:43]} Qa5 {[%emt 0:04:58]} 14. Kb1 {[%emt 0:03:17]} Nd7 {[%emt 0:00:
00]} 15. Rc1 {[%emt 0:08:28]} Kb8 {[%emt 0:08:33]} 16. d5 {[%emt 0:09:24]} Nec5
{[%emt 0:03:36]} 17. Bg5 {[%emt 0:04:55]} Rhe8 {[%emt 0:01:59]} 18. dxc6 {
[%emt 0:04:04]} Ne5 {[%emt 0:02:21]} 19. Nd5 {[%emt 0:02:58]} Nxc6 {[%emt 0:00:
00]} 20. Qxa5 {[%emt 0:02:12]} Nxa5 {[%emt 0:00:06]} 21. Bxe7 {[%emt 0:00:49]}
Rxe7 {[%emt 0:01:55]} 22. Nxe7 {[%emt 0:00:10]} Na4 {[%emt 0:00:22]} 23. b4 {
[%emt 0:01:29]} Rd7 {[%emt 0:01:23]} 24. Nd5 {[%emt 0:01:27]} Nc6 {[%emt 0:00:
00]} 25. Bd1 {[%emt 0:01:04]} Nb2 {[%emt 0:01:11]} 26. f4 {[%emt 0:00:51]} Nxd1
{[%emt 0:07:30]} 27. Rxd1 {[%emt 0:00:07]} Nd4 {[%emt 0:01:02]} 28. f5 {
[%emt 0:01:43]} Be5 {[%emt 0:01:26]} 29. fxg6 {[%emt 0:00:49]} fxg6 {[%emt 0:
00:00]} 30. Rf1 {[%emt 0:00:07]} Rd8 {[%emt 0:02:50]} 31. Rf7 {[%emt 0:00:39]}
Rc8 {[%emt 0:00:51]} 32. Ne7 {[%emt 0:01:55]} Rxc4 {[%emt 0:01:51]} 33. Rf8+ {
[%emt 0:00:12]} 1-0